Cogmind - Beta 15 @@@ ROGUE MODE // 2025.10.05 @ 11:44:22 Player: King Of Bel Result: Destroyed by G-47 Trooper with Particle Gun Performance ------------- Evolutions (1) 500 Regions Visited (6) 1200 Robots Destroyed (32) 160 Value Destroyed (823) 823 Prototype IDs (23) 460 Alien Tech Used (0) 0 Bonus (300) 300 TOTAL SCORE: 3443 Bonus ------- Aligned with FarCom 300 Cogmind --------- Core Integrity 0/400 Matter 300/300 Energy 150/150 System Corruption 0% Temperature Hot (238) Movement Rolling (80) Location -8/Mines Parts ------- > --- POWER (1) -------- Light Angular Momentum Engine > --- PROPULSION (3) --- Wheel Wheel > --- UTILITY (3) ------ Signal Interpreter Terrain Scan Processor > --- WEAPON (2) ------- Particle Cannon > --- INVENTORY (5) ---- Flight Unit Flight Unit Advanced Weight Redist. System Cloak of Protection Datajack Peak State ------------ > --- POWER ------------ Light Angular Momentum Engine > --- PROPULSION ------- Carbon-fiber Leg Carbon-fiber Leg Wheel > --- UTILITY ---------- Signal Interpreter Improved Terrain Scanner Terrain Scan Processor > --- WEAPON ----------- Particle Cannon > --- INVENTORY -------- Flight Unit Flight Unit Weight Redist. System Advanced Weight Redist. System Datajack [Rating: 20] Favorites ----------- Power Light Ion Engine Engine Light Ion Engine Power Core Light Nuclear Core Propulsion Wheel Leg Aluminum Leg Wheel Wheel Hover Unit Hover Unit Utility Signal Interpreter Device Improved Terrain Scanner Storage Small Storage Unit Processor Signal Interpreter Weapon Light Assault Rifle Energy Cannon Particle Cannon Ballistic Gun Light Assault Rifle Build | -11 -10 -10 -9 -9 -9 -8 ------- Run | Yrd Mat Min Mat Min Exi Min Slots Evolved 2 | . . . 2 . . . Power . | . . . . . . . Propulsion 1 | . . . 1 . . . Utility 1 | . . . 1 . . . Weapon . | . . . . . . . Parts Attached 41 | 5 4 9 16 7 . . Power 9 | 1 . 4 3 1 . . Engine 8 | 1 . 3 3 1 . . Core 1 | . . 1 . . . . Reactor . | . . . . . . . Propulsion 19 | 2 2 3 9 3 . . Treads . | . . . . . . . Leg 10 | . 2 3 5 . . . Wheel 5 | 2 . . . 3 . . Hover 4 | . . . 4 . . . Flight . | . . . . . . . Utility 7 | 1 1 . 2 3 . . Device 3 | . . . 1 2 . . Storage 1 | 1 . . . . . . Processor 3 | . 1 . 1 1 . . Hackware . | . . . . . . . Protection . | . . . . . . . Artifact . | . . . . . . . Weapon 6 | 1 1 2 2 . . . Energy Gun . | . . . . . . . Energy Cannon 2 | . . . 2 . . . Ballistic Gun 4 | 1 1 2 . . . . Ballistic Cannon . | . . . . . . . Launcher . | . . . . . . . Special Weapon . | . . . . . . . Impact Weapon . | . . . . . . . Slashing Weapon . | . . . . . . . Piercing Weapon . | . . . . . . . Special Melee Weapon . | . . . . . . . Unidentified Prototypes . | . . . . . . . Parts Lost 14 | . 1 1 8 2 . 2 Power 3 | . . 1 2 . . . Propulsion 6 | . 1 . 3 1 . 1 Utility 2 | . . . 1 . . 1 Weapon 3 | . . . 2 1 . . Highest Loss Streak 6 | . 1 1 6 1 . 2 To Critical Strikes . | . . . . . . . Average Backups 6 | 2 7 8 6 5 5 5 Power . | . 1 . . . . . Propulsion 3 | 1 3 3 3 2 2 2 Utility 1 | . . 1 1 2 2 2 Weapon 1 | . 1 2 . . . . Tool/Special . | . . . . . . . Unused Backups 9 | . . . 3 . 1 5 Power . | . . . . . . . Propulsion 3 | . . . 1 . . 2 Utility 3 | . . . . . 1 2 Weapon 2 | . . . 2 . . . Tool/Special 1 | . . . . . . 1 Average Slot Usage (%) 92 | . 95 99 85 90 88 87 Engine 10 | . 14 11 5 11 11 11 Core 1 | . . 1 4 . . . Leg 15 | . 3 28 16 20 . . Wheel 11 | . 23 . . 8 33 32 Hover 2 | . . . 12 . . . Device 4 | . . . . 10 11 10 Storage 7 | . 14 14 6 . . . Processor 17 | . 11 14 20 21 22 22 Energy Cannon 5 | . . . 3 17 11 11 Ballistic Gun 15 | . 28 28 14 . . . Peak Build Rating 20 | 5 7 9 19 20 17 17 Average Rating 11 | 4 6 7 12 17 16 16 On Entrance 10 | . 5 7 9 19 16 17 Naked Turns . | . . . . . . . Heaviest Build 18 | 10 11 13 16 18 14 14 Greatest Support 45 | 26 26 20 45 45 30 30 Greatest Overweight (x) 2 | . 1 . 2 1 . . Average Overweight (x) . | . . . . . . . Largest Inventory Capacity 8 | 8 8 8 8 5 5 5 Average Capacity 6 | 7 8 8 6 5 5 5 Most Carried 8 | 5 8 8 8 5 5 5 Average Carried 6 | 2 7 7 6 5 5 5 Final Capacity 8 | 8 8 8 5 5 5 5 Final Carried 8 | 5 8 8 5 5 5 5 Class Distribution -------------------- 61% | Mutant 32% | Scavenger-Mutant 6% | Skirmisher Dominant Class ---------------- Mutant | -10/Materials Mutant | -10/Mines Mutant | -9/Materials Skirmisher | -9/Mines Scavenger-Mutant | -9/Exiles Scavenger-Mutant | -8/Mines Resources | -11 -10 -10 -9 -9 -9 -8 ----------- Run | Yrd Mat Min Mat Min Exi Min Matter Collected 808 | 200 95 273 167 73 . . Remotely . | . . . . . . . Salvage Created 1140 | . 116 307 605 58 . 54 Parts 70 | . 12 23 34 . . 1 Haulers Intercepted . | . . . . . . . Recyclers Shooed 3 | . 1 1 1 . . . Parts Field Recycled . | . . . . . . . Retrieved Matter . | . . . . . . . Parts Self-Destructed . | . . . . . . . Prevented . | . . . . . . . Kills | -11 -10 -10 -9 -9 -9 -8 ------- Run | Yrd Mat Min Mat Min Exi Min Combat Hostiles Destroyed 34 | . 4 13 12 4 . 1 Guns 25 | . 4 13 8 . . . Cannons 9 | . . . 4 4 . 1 Classes Destroyed 7 | . 4 . 2 1 . . Worker 1 | . 1 . . . . . Watcher 1 | . 1 . . . . . Swarmer 12 | . 3 9 . . . . Grunt 12 | . 1 4 7 . . . Brawler 2 | . . . 1 . . 1 Sentry 4 | . . . 4 . . . Assembled 4 | . . . . 4 . . Best Kill Streak 4 | . 4 3 4 3 . 1 Combat Bots Only 4 | . 4 3 4 3 . 1 Max Kills in Single Turn 2 | . 1 2 1 1 . 1 Gunslinging 1 | . . 1 . . . . Exploded . | . . . . . . . Melee . | . . . . . . . Uniques/NPCs Destroyed . | . . . . . . . Combat | -11 -10 -10 -9 -9 -9 -8 -------- Run | Yrd Mat Min Mat Min Exi Min Hostile Shots Fired 275 | . 23 79 138 25 . 10 Missed 85 | . 6 24 47 7 . 1 Hits 190 | . 17 55 91 18 . 9 Projectile 190 | . 17 55 91 18 . 9 AOE 1 | . . . . 1 . . Critical Strikes 9 | . . 1 5 1 . 2 Damage Taken 2313 | . 165 565 1200 237 . 146 Core 559 | . 41 108 344 51 . 15 Absorbed by Shields . | . . . . . . . Core Remaining (%) 70 | 100 . 40 . . . . Volleys Fired 132 | . 21 41 49 11 . 10 Largest 2 | . 2 2 2 2 . 1 Hottest 136 | . 40 40 136 136 . 68 Shots Fired 231 | . 42 82 76 21 . 10 Gun 186 | . 42 82 62 . . . Cannon 45 | . . . 14 21 . 10 Launcher . | . . . . . . . Special . | . . . . . . . Kinetic 186 | . 42 82 62 . . . Thermal 45 | . . . 14 21 . 10 Explosive . | . . . . . . . Electromagnetic . | . . . . . . . Robot Hit Streak 9 | . 6 6 9 3 . 5 Robot Miss Streak 6 | . 3 4 3 6 . 2 Penetration Max . | . . . . . . . Secondary Targets 3 | . . 1 2 . . . Max Gunslinging Chain 1 | . . 1 1 . . . Shots Hit Robots 135 | . 19 49 53 7 . 7 Core Hits 68 | . 11 23 27 4 . 3 Critical Kills . | . . . . . . . Critical Parts Destroyed . | . . . . . . . Critical Strikes 1 | . . . 1 . . . Destroy 1 | . . . 1 . . . Melee Attacks . | . . . . . . . Impact . | . . . . . . . Slashing . | . . . . . . . Piercing . | . . . . . . . Sneak Attacks . | . . . . . . . Combat Hostiles . | . . . . . . . Follow-up Attacks . | . . . . . . . Damage Inflicted 1594 | . 257 492 537 164 . 144 Guns 1112 | . 257 484 371 . . . Cannons 433 | . . . 145 144 . 144 Explosions . | . . . . . . . Melee . | . . . . . . . Ramming 49 | . . 8 21 20 . . Kinetic 1112 | . 257 484 371 . . . Thermal 433 | . . . 145 144 . 144 Explosive . | . . . . . . . Electromagnetic . | . . . . . . . Impact . | . . . . . . . Slashing . | . . . . . . . Piercing . | . . . . . . . Highest Corruption . | . . . . . . . Average Corruption . | . . . . . . . Corruption Purged . | . . . . . . . Corruption Blocked . | . . . . . . . Overload Shots . | . . . . . . . Overflow Damage 3 | . . . . 3 . . Projectiles 3 | . . . . 3 . . Explosions . | . . . . . . . Melee . | . . . . . . . Knockbacks . | . . . . . . . Impact . | . . . . . . . Kinetic . | . . . . . . . Secondary . | . . . . . . . Self-Inflicted Damage . | . . . . . . . Shots . | . . . . . . . Rammed . | . . . . . . . Targets Rammed 14 | . . 5 5 4 . . Kicked 14 | . . 5 5 4 . . Crushed . | . . . . . . . Highest Temperature 355 | . 12 26 355 308 . 286 Average Temperature 103 | . 6 10 89 150 . 169 Received Heat Transfer 888 | . 63 186 522 . . 117 Siege Activations . | . . . . . . . Martial Activations . | . . . . . . . Shielding Activations . | . . . . . . . Robots Disrupted . | . . . . . . . Combat Hostiles . | . . . . . . . Robots Corrupted . | . . . . . . . Combat Hostiles . | . . . . . . . Parts Fried . | . . . . . . . Impact Corruptions . | . . . . . . . Robots Melted . | . . . . . . . Combat Hostiles . | . . . . . . . Parts Melted 1 | . . . . . . 1 Heat Transferred 777 | . . . 259 259 . 259 Parts Sabotaged . | . . . . . . . Parts Stolen . | . . . . . . . Parts Stripped . | . . . . . . . Power Chain Reactions . | . . . . . . . Alert | -11 -10 -10 -9 -9 -9 -8 ------- Run | Yrd Mat Min Mat Min Exi Min Maximum Alert Level . | . . . . . . . Low Security (%) 100 | 100 100 100 100 100 . 100 Level 1 . | . . . . . . . Level 2 . | . . . . . . . Level 3 . | . . . . . . . Level 4 . | . . . . . . . Level 5 . | . . . . . . . High Security . | . . . . . . . Max Security . | . . . . . . . Peak Influence 145 | . 80 143 145 46 . 30 Initial 46 | . . 23 1 46 . . Average 35 | . 17 56 67 5 . . Influence Increases 891 | . 142 310 409 . . 30 Destroy 0b10 Robot/C 600 | . 80 260 240 . . 20 Destroy 0b10 Robot/NC 10 | . 10 . . . . . Destroy Leader 152 | . 22 50 70 . . 10 Successful Hack 8 | . . . 8 . . . Destroy Structure 1 | . . . 1 . . . Lose Combat Pursuer 120 | . 30 . 90 . . . Influence Decreases 871 | . 82 364 294 121 . 10 Entered New Map 117 | . . 37 5 75 . . Time Decay 664 | . 82 317 209 46 . 10 Lost Part 90 | . . 10 80 . . . Squads Dispatched 4 | . 1 . 3 . . . Investigation . | . . . . . . . Extermination . | . . . . . . . Reinforcement 4 | . 1 . 3 . . . Assault . | . . . . . . . Garrison . | . . . . . . . Intercept . | . . . . . . . Searches Triggered . | . . . . . . . Construction Impeded . | . . . . . . . Haulers Reinforced . | . . . . . . . Active Scanning Responses . | . . . . . . . Cargo Convoy Interrupts . | . . . . . . . Stealth | -11 -10 -10 -9 -9 -9 -8 --------- Run | Yrd Mat Min Mat Min Exi Min Distress Signals 2 | . 1 . 1 . . . Communications Jammed . | . . . . . . . Distress Signals . | . . . . . . . Times Spotted 60 | . 10 13 26 8 . 3 Peak Tracking Total 7 | . 3 3 7 2 . 3 Tactical Retreats 5 | . 1 . 3 1 . . Traps | -11 -10 -10 -9 -9 -9 -8 ------- Run | Yrd Mat Min Mat Min Exi Min Traps Triggered . | . . . . . . . Indirectly . | . . . . . . . Trap Hack Attempts . | . . . . . . . Triggered . | . . . . . . . Disarmed . | . . . . . . . Reprogrammed . | . . . . . . . Reused . | . . . . . . . Traps Extracted . | . . . . . . . Installed . | . . . . . . . Triggered . | . . . . . . . Machines | -11 -10 -10 -9 -9 -9 -8 ---------- Run | Yrd Mat Min Mat Min Exi Min Machines Disabled . | . . . . . . . Max in Single Turn . | . . . . . . . Machines Repaired . | . . . . . . . Machines Dismantled . | . . . . . . . Machines Sabotaged . | . . . . . . . Overloaded Fab Kills . | . . . . . . . Hacking | -11 -10 -10 -9 -9 -9 -8 --------- Run | Yrd Mat Min Mat Min Exi Min Machines Accessed 9 | . 2 . 1 2 4 . Terminals 3 | . 2 . 1 . . . Fabricators . | . . . . . . . Repair Stations . | . . . . . . . Recycling Units . | . . . . . . . Scanalyzers . | . . . . . . . Garrison Access . | . . . . . . . Total Hacks 36 | . 5 . 2 2 27 . Successful 33 | . 2 . 2 2 27 . Failed 3 | . 3 . . . . . Catastrophic 1 | . 1 . . . . . Database Lockouts . | . . . . . . . Manual 6 | . 4 . 1 . 1 . Terminals 7 | . 5 . 2 . . . Fabricators . | . . . . . . . Repair Stations . | . . . . . . . Recycling Units . | . . . . . . . Scanalyzers . | . . . . . . . Garrison Access . | . . . . . . . Terminal Hacks 33 | . 2 . 2 2 27 . Record 26 | . . . . . 26 . Open Door 2 | . . . . 2 . . Branch Access Points 2 | . 1 . 1 . . . Alert Level 2 | . 1 . 1 . . . Proto ID Catalog 1 | . . . . . 1 . Fabricator Hacks . | . . . . . . . Repair Station Hacks . | . . . . . . . Recycling Unit Hacks . | . . . . . . . Scanalyzer . | . . . . . . . Garrison Access Hacks . | . . . . . . . Unauthorized Hacks . | . . . . . . . Terminals . | . . . . . . . Fabricators . | . . . . . . . Repair Stations . | . . . . . . . Recycling Units . | . . . . . . . Scanalyzers . | . . . . . . . Garrison Access . | . . . . . . . Data Cores Recovered . | . . . . . . . Used . | . . . . . . . Hacking Detections 2 | . 1 . 1 . . . Full Trace Events 1 | . 1 . . . . . Feedback Events . | . . . . . . . Feedback Blocked . | . . . . . . . Robot Schematics Acquired . | . . . . . . . Robots Built . | . . . . . . . Authchips . | . . . . . . . Time . | . . . . . . . Total Robot Build Rating . | . . . . . . . Part Schematics Acquired . | . . . . . . . Parts Built . | . . . . . . . Authchips . | . . . . . . . Time . | . . . . . . . Total Part Build Rating . | . . . . . . . Parts Repaired . | . . . . . . . Time . | . . . . . . . Parts Recycled . | . . . . . . . Recycled Matter . | . . . . . . . Retrieved Matter . | . . . . . . . Retrieved Components . | . . . . . . . Parts Scanalyzed . | . . . . . . . Part Schematics Acquired . | . . . . . . . Parts Damaged . | . . . . . . . Bothacking | -11 -10 -10 -9 -9 -9 -8 ------------ Run | Yrd Mat Min Mat Min Exi Min Used RIF Installer . | . . . . . . . Robots Hacked . | . . . . . . . Non-combat . | . . . . . . . Combat . | . . . . . . . Robot Hacks Applied . | . . . . . . . Relay Couplers Released . | . . . . . . . Fabnet Peak Effective % . | . . . . . . . Robots Rewired . | . . . . . . . Allies Hacked . | . . . . . . . Hacks Repelled . | . . . . . . . Allies | -11 -10 -10 -9 -9 -9 -8 -------- Run | Yrd Mat Min Mat Min Exi Min Total Allies 1 | . . . . 1 . . Largest Group 1 | . . . . 1 . . Highest-Rated Group 31 | . . . . 31 . . Highest-Rated Ally 31 | . . . . 31 . . Total Orders . | . . . . . . . Ally Attacks 8 | . . . . 8 . . Total Damage 129 | . . . . 129 . . Kills 3 | . . . . 3 . . Allies Corrupted . | . . . . . . . Allies Melted . | . . . . . . . Intel | -11 -10 -10 -9 -9 -9 -8 ------- Run | Yrd Mat Min Mat Min Exi Min Active Infowar (turns) 1378 | . . . 430 422 197 329 Optics 593 | . . . 430 163 . . Sensors 179 | . . . 17 162 . . Terrain 785 | . . . . 259 197 329 Robot Analysis Total . | . . . . . . . Derelict Logs Recovered 4 | . . 3 . 1 . . Drone Launches . | . . . . . . . Drone Recoveries . | . . . . . . . Exploration | -11 -10 -10 -9 -9 -9 -8 ------------- Run | Yrd Mat Min Mat Min Exi Min Turns Passed 2697 | 45 341 833 504 431 197 346 Spaces Moved 2311 | 38 289 571 429 364 245 375 Core 3 | 2 . . 1 . . . Treads . | . . . . . . . Legs 996 | . 23 571 185 217 . . Wheels 1069 | 36 266 . . 147 245 375 Hover 243 | . . . 243 . . . Flight . | . . . . . . . Fastest Speed 50 | 50 90 120 52 80 80 80 Average Speed 95 | 87 92 120 82 103 80 80 Slowest Speed 180 | 90 120 120 180 120 80 80 Overloaded Moves . | . . . . . . . Propulsion Burnouts . | . . . . . . . Robots Hopped . | . . . . . . . Potential Cave-ins . | . . . . . . . Cave-ins Triggered . | . . . . . . . Exploration Rate (%) 51 | 4 53 95 44 55 62 44 Regions Visited 6 Branch Regions 4 Pre-discovered Areas 2 | . . 1 . 1 . . Known Exits Taken 5 | . 1 1 1 1 1 . Unknown Exits Taken 1 | 1 . . . . . . Scrap Searched 3 | . . 1 . 1 . 1 Spaces Dug . | . . . . . . . Terrain Destroyed . | . . . . . . . Melee . | . . . . . . . Projectile . | . . . . . . . AOE . | . . . . . . . Terrain Rammed . | . . . . . . . Walls Destroyed . | . . . . . . . Machines Disabled . | . . . . . . . Actions | -11 -10 -10 -9 -9 -9 -8 --------- Run | Yrd Mat Min Mat Min Exi Min Total 2586 | 47 324 650 513 394 246 412 Wait 51 | . 4 15 2 3 . 27 Move 2305 | 37 288 570 428 363 244 375 Hop . | . . . . . . . Pick Up 18 | 5 6 2 4 . 1 . Fast Attach 22 | 5 1 2 8 6 . . Attach 5 | . 3 . 2 . . . Detach 1 | . . . . 1 . . Swap 16 | . . 7 8 1 . . Drop 22 | . 1 8 7 5 1 . Fire 132 | . 21 41 49 11 . 10 Melee . | . . . . . . . Ram . | . . . . . . . Kick 14 | . . 5 5 4 . . Crush . | . . . . . . . Escape Stasis . | . . . . . . . Rewire . | . . . . . . . Trap . | . . . . . . . Miscellaneous . | . . . . . . . Route ------- -11/Scrapyard -10/Materials (discovered 3 exits: *Mat / *Min x2) -10/Mines (discovered 3 exits: *Mat x2 / *Sub) -9/Materials (discovered 4 exits: *Mat / *Min / *Sto x2) -9/Mines (discovered 3 exits: *Mat x2 / *Exi) -9/Exiles -8/Mines History --------- Turn | Location | Event 17 | -11/Scrapyard | Discovered new exit (range 16) 46 | -11/Scrapyard | Entered Materials 94 | -10/Materials | Discovered new exit (range 11) 107 | -10/Materials | Identified exit to Materials 278 | -10/Materials | Identified exit to Mines 308 | -10/Materials | Build established: Mutant 387 | -10/Materials | Entered Mines 504 | -10/Mines | Discovered new exit (range 5) 508 | -10/Mines | Identified exit to Subcaves 528 | -10/Mines | Learned location of Storage (-9) 601 | -10/Mines | Joined a pair of Derelicts in attacking an 0b10 outpost 640 | -10/Mines | Found a hidden stash of uninstalled traps 756 | -10/Mines | Discovered exit to Materials (range 5) 849 | -10/Mines | Discovered exit to Materials (range 5) 881 | -10/Mines | Learned Materials trap positions 1036 | -10/Mines | Learned 4 Materials zone layouts 1094 | -10/Mines | Core integrity fell below 50% 1220 | -10/Mines | Entered Materials 1220 | -9/Materials | Evolved 2 slots: Propulsion x1, Utility x1 1221 | -9/Materials | Identified exit to Mines 1223 | -9/Materials | Loaded intel: 20 trap records 1234 | -9/Materials | Discovered new exit (range 15) 1271 | -9/Materials | Identified exit to Storage 1338 | -9/Materials | Discovered exit to Storage (range 14) 1563 | -9/Materials | Lost 6 parts (1p3n1u1w) 1598 | -9/Materials | Discovered new exit (range 7) 1605 | -9/Materials | Core integrity fell below 50% 1683 | -9/Materials | Core integrity fell below 20% 1724 | -9/Materials | Entered Mines 1725 | -9/Mines | Assembled infested the area 1730 | -9/Mines | Assisted by a Guerilla fighting off Assembled 1791 | -9/Mines | Received a Mining Laser from a helpful Derelict 1910 | -9/Mines | Discovered new exit (range 11) 2007 | -9/Mines | Met a Derelict who couldn't figure out how to use a Trap Extractor 2059 | -9/Mines | Discovered new exit (range 12) 2071 | -9/Mines | Found the Drone Emporium 2095 | -9/Mines | Learned location of Zion (-7) 2134 | -9/Mines | Identified exit to Materials 2151 | -9/Mines | Deemed a non-threat by the Exiles lab entrance 2152 | -9/Mines | Discovered new exit (range 5) 2154 | -9/Mines | Identified exit to Exiles 2155 | -9/Mines | Entered Exiles 2156 | -9/Exiles | Identified exit to Mines 2175 | -9/Exiles | Met 8R-AWN 2189 | -9/Exiles | Met EX-HEX 2211 | -9/Exiles | Met EX-BIN 2221 | -9/Exiles | Aligned with FarCom system 2222 | -9/Exiles | Given EX-Vault access code 2264 | -9/Exiles | Opened EX-Vault 2272 | -9/Exiles | Found Cloak of Protection 2289 | -9/Exiles | Warned to stay clear of 0b10 Research branches 2312 | -9/Exiles | Met EX-DEC 2331 | -9/Exiles | Build established: Scavenger-Mutant 2352 | -9/Exiles | Left Exiles lab with Cloak of Protection 2352 | -9/Exiles | Entered Mines 2698 | -8/Mines | Destroyed by G-47 Trooper with Particle Gun Last Messages --------------- 02314_ EX-DEC: "Oops, I hope HEX didn't hear that..." LOCATION=MINES GOAL=ESCAPE 02352_ Receiving FarCom transmissions... 02507_ K-01 Serf collects debris. 02518_ Searching scrap... 02518_ Found Nuclear Core. 02518_ Found Adv. Treads. 02518_ Found Targeting Computer. 02518_ Found 45 Matter. 02526_ T-07 Excavator is excavating. 02528_ K-01 Serf collects debris. 02534_ T-07 Excavator is excavating. 02587_ K-01 Serf collects debris. 02681_ Imp. Terrain Scanner destroyed. 02683_ Critical hit (Burn: +37). 02687_ Wheel destroyed. 02687_ Critical hit (Burn: +37). 02688_ Lgt. Armor Plating melted. 02688_ B-36 Bruiser destroyed. Map ----- +----------------------------------------------------+ | ??#??????## #?##???#?? ??????#?#?#????????????? | | #??#?????## #?????????????? ???????#??????????? | | ?????##### ##????????#???##??????#?????##????? | | ????## ##??#??#?##?????##????#????#??????? | | ???## #?#????#??##???????#?##?##??#?##???? | | ???# ###??###?##?##?######????##??###?? ?? | | ???# ####??#?###?#?#?########?#?#####??#???? | | #??## #?#??####?#???###?###?##??###?##??#? ??? | | ???### ###### ######?######?????##?#??##?? ??? | | ????### ## ##?#### ##??#?##?###?##?# ? ? | | ??#?#?## #?#?## ###?#???###?#????## ? | | ??????### ###### ###?###???####?#????? | | ?? ?##??## #### #?######### ######?? | | ? ???????# ## #?######## ##?##?? | | ###### #### #### #?##?## | | # ##### #### # #####?# | | ?# ####### ###### ##### ######## ####?## | | ???#?#????# #??### ######## ######### ##### | | ???##??#### #??### #### ######### | | ???#?##??? ##?# ##?## ## | | ????????? ?## ##### ###### | | ???#?#??? ## ###### ## | | ????## ?? ### g ###?## ## ##### | | ???#??#? ### = ### ######### #### #?### | | ???? ?## ### % ### ######### ##### ##?### | | ???????### #### g @# ########### | | ??????##?# ###### ###### ####### #####?# | | ??? ? ??## ??##?# ###### #?#### ######## | | ????????## #?#?## ###?## ####?## #?#### | | ?????? ?## #?#### ##?## #?#??##### #??# | | ????????####?####?## #### #??######### #### | | ??????? ?#?#?#??##?# #### ####?####???# ##?# | | ?????#? ?#? ####?## #### ##########?######## | | ??????????## ?#????# ### ###?#????####?#### | | ??????????? ?######## ## ##?#?######??#?## | | ??????????? ????#?#### ###?##?#?#??##?#### | | ??????? ###?######??### #??????##????##### | | ?????????#?????#???##### """ ##????????#??#?## | | ??????????????#???###### """ #??#?##???????# | | ????????#?? ??#??####### """ ##????#?#?????# | | ????????????????#??##??## #?#??#??#?????## | | ???????????????????#????## ## ##?#????#?????#?# | | ????????????????#????????#####?###?????????#??##?# | | ???????????#????#???#???#??#?#??#???#??????#??#??# | | ??????????????#????????#?????##??###???#?#???????? | | ?????????????????#???#??###??????#???????????????? | | ?????????????????????#????????????????????????#??? | | | | | | | +----------------------------------------------------+ Best States ------------- Heat Dissipation 28 Energy Generation 18 Energy Capacity 265 Matter Stores 300 Matter Capacity 300 Sight Range 18 Robot Scan Range 14 Terrain Scan Range 16 Terrain Scan Density 85 Evasion (%) 55 Item Schematics ----------------- None Robot Schematics ------------------ None Fabricated ------------ Nothing Repaired ---------- Nothing Alien Tech Used ----------------- None Achievements -------------- None Challenges ------------ None Game ------ Seed CryofiberGrenadeManipulator Manual? 0 Play Time 00:34:56 Cumulative 10.2 hours Start 2025.10.05 @ 11:11:47 End 2025.10.05 @ 11:44:22 Sessions 1 Manual Loads 0 Difficulty Rogue Special Mode None Game No. 30 Rogue 26 Adventurer 4 Explorer 0 Win Type - Total 0 Types 0/0/0/0/0/0/0/0/0/0 Lore% 11 Gallery% 16 Achievement% 18 Wizard Run 0 Options --------- Layout 0 ASCII 0 Keyboard 0 Movement Numpad Keybinds 0 Fullscreen 2 Font 36/Smallcaps Map View 76x50 Zoom Use 0% Tactical HUD 1 Map Filters NONE Filters NONE Steam 1 RUN: a372453f-f57a-4b6e-8189-f06d64ed6105